Cogmind - Beta 15 @@@ ROGUE MODE // 2025.10.03 @ 22:49:01 Player: dare evans Result: Destroyed by S-10 Pest with Light Assault Rifle Performance ------------- Evolutions (2) 1000 Regions Visited (4) 800 Robots Destroyed (28) 140 Value Destroyed (848) 848 Prototype IDs (1) 20 Alien Tech Used (0) 0 Bonus (0) 0 TOTAL SCORE: 2808 Bonus ------- None Cogmind --------- Core Integrity 0/550 Matter 273/300 Energy 98/100 System Corruption 0% Temperature Cool (1) Movement Walking (120) Location -8/Materials Parts ------- > --- POWER (1) -------- (None) > --- PROPULSION (4) --- Aluminum Leg > --- UTILITY (4) ------ (None) > --- WEAPON (2) ------- Minigun > --- INVENTORY (5) ---- High-capacity Storage Unit Small Laser Small Laser Peak State ------------ > --- POWER ------------ Ion Engine > --- PROPULSION ------- Light Treads Aluminum Leg Aluminum Leg Aluminum Leg > --- UTILITY ---------- Heat Sink Small Storage Unit Experimental Sensor Array Light Armor Plating > --- WEAPON ----------- Heavy Hammer Heavy Hammer > --- INVENTORY -------- Light Ion Engine Heat Sink High-capacity Storage Unit EM Shotgun Small Laser Small Laser Small Laser Minigun [Rating: 22] Favorites ----------- Power Ion Engine Engine Ion Engine Propulsion Aluminum Leg Treads Light Treads Leg Aluminum Leg Utility Small Storage Unit Device Heat Sink Storage Small Storage Unit Protection Light Armor Plating Weapon Small Laser Energy Gun Small Laser Ballistic Gun Minigun Impact Weapon Heavy Hammer Build | -11 -10 -10 -9 -8 ------- Run | Yrd Mat Min Mat Mat Slots Evolved 4 | . . . 2 2 Power . | . . . . . Propulsion 2 | . . . 2 . Utility 2 | . . . . 2 Weapon . | . . . . . Parts Attached 25 | 7 1 . 12 5 Power 3 | 2 . . 1 . Engine 3 | 2 . . 1 . Core . | . . . . . Reactor . | . . . . . Propulsion 7 | 2 . . 3 2 Treads 1 | . . . 1 . Leg 6 | 2 . . 2 2 Wheel . | . . . . . Hover . | . . . . . Flight . | . . . . . Utility 6 | 1 1 . 2 2 Device 4 | . 1 . 2 1 Storage 1 | 1 . . . . Processor . | . . . . . Hackware . | . . . . . Protection 1 | . . . . 1 Artifact . | . . . . . Weapon 9 | 2 . . 6 1 Energy Gun 6 | 2 . . 4 . Energy Cannon . | . . . . . Ballistic Gun 1 | . . . . 1 Ballistic Cannon . | . . . . . Launcher . | . . . . . Special Weapon . | . . . . . Impact Weapon 2 | . . . 2 . Slashing Weapon . | . . . . . Piercing Weapon . | . . . . . Special Melee Weapon . | . . . . . Unidentified Prototypes . | . . . . . Parts Lost 14 | . . . 1 13 Power 2 | . . . . 2 Propulsion 5 | . . . 1 4 Utility 5 | . . . . 5 Weapon 2 | . . . . 2 Highest Loss Streak 10 | . . . 1 10 To Critical Strikes . | . . . . . Average Backups 7 | 3 7 8 7 6 Power . | . 1 1 1 . Propulsion . | 1 2 1 . . Utility 2 | . 2 3 3 1 Weapon 2 | 1 1 2 3 3 Tool/Special . | . . . . . Unused Backups 9 | . 3 2 2 2 Power . | . . . . . Propulsion 3 | . 3 . . . Utility 3 | . . 2 . 1 Weapon 3 | . . . 2 1 Tool/Special . | . . . . . Average Slot Usage (%) 92 | . 97 100 99 71 Engine 11 | . 14 14 11 7 Treads 1 | . . . . 4 Leg 31 | . 28 28 42 20 Device 12 | . 12 14 11 12 Storage 11 | . 14 14 11 6 Protection 1 | . . . . 4 Energy Gun 18 | . 28 28 20 . Impact Weapon 4 | . . . 1 14 Peak Build Rating 22 | 6 7 8 12 22 Average Rating 10 | 3 6 7 10 15 On Entrance 6 | . 6 7 8 12 Naked Turns 2 | . . . . 2 Heaviest Build 21 | 12 13 13 17 21 Greatest Support 40 | 20 20 20 40 40 Greatest Overweight (x) 3 | . . . . 3 Average Overweight (x) . | . . . . . Largest Inventory Capacity 8 | 8 8 8 8 8 Average Capacity 7 | 6 8 8 8 7 Most Carried 8 | 5 8 8 8 8 Average Carried 7 | 3 7 7 7 6 Final Capacity 8 | 8 8 8 8 5 Final Carried 8 | 4 8 8 8 3 Class Distribution -------------------- 68% | Mutant 31% | Scavenger-Mutant Dominant Class ---------------- Mutant | -10/Materials Mutant | -10/Mines Scavenger-Mutant | -9/Materials Scavenger-Mutant | -8/Materials Resources | -11 -10 -10 -9 -8 ----------- Run | Yrd Mat Min Mat Mat Matter Collected 495 | 216 . 51 124 104 Remotely . | . . . . . Salvage Created 1106 | . . 298 305 503 Parts 49 | . . 12 18 19 Haulers Intercepted . | . . . . . Recyclers Shooed 1 | . . . . 1 Parts Field Recycled . | . . . . . Retrieved Matter . | . . . . . Parts Self-Destructed . | . . . . . Prevented . | . . . . . Kills | -11 -10 -10 -9 -8 ------- Run | Yrd Mat Min Mat Mat Combat Hostiles Destroyed 24 | . . 5 9 10 Melee 6 | . . . . 6 Guns 14 | . . 5 8 1 Classes Destroyed 6 | . . 3 2 1 Recycler 3 | . . 2 . 1 Watcher 1 | . . . 1 . Swarmer 8 | . . 3 4 1 Grunt 12 | . . 2 2 8 Sentry 3 | . . . 3 . Heavy 1 | . . . . 1 Best Kill Streak 5 | . . 4 5 4 Combat Bots Only 5 | . . 3 5 3 Max Kills in Single Turn 2 | . . 1 2 1 Gunslinging 1 | . . . 1 . Exploded . | . . . . . Melee 1 | . . . . 1 Uniques/NPCs Destroyed . | . . . . . Combat | -11 -10 -10 -9 -8 -------- Run | Yrd Mat Min Mat Mat Hostile Shots Fired 147 | . . 13 49 85 Missed 41 | . . 2 13 26 Hits 106 | . . 11 36 59 Projectile 106 | . . 11 36 59 Critical Strikes 4 | . . . . 4 Damage Taken 1957 | . . 94 417 1446 Core 653 | . . 29 72 552 Absorbed by Shields . | . . . . . Core Remaining (%) 90 | 100 . 88 82 . Volleys Fired 53 | . . 12 29 12 Largest 2 | . . 2 2 1 Hottest 130 | . . 80 130 25 Shots Fired 94 | . . 24 58 12 Gun 94 | . . 24 58 12 Cannon . | . . . . . Launcher . | . . . . . Special . | . . . . . Kinetic 12 | . . . . 12 Thermal 82 | . . 24 58 . Explosive . | . . . . . Electromagnetic . | . . . . . Robot Hit Streak 16 | . . 15 13 16 Robot Miss Streak 4 | . . 2 4 2 Penetration Max . | . . . . . Secondary Targets 3 | . . 1 2 . Max Gunslinging Chain 1 | . . 1 1 . Shots Hit Robots 99 | . . 18 36 45 Core Hits 37 | . . 13 13 11 Critical Kills 1 | . . . . 1 Critical Parts Destroyed 4 | . . . . 4 Critical Strikes 5 | . . . . 5 Smash 5 | . . . . 5 Melee Attacks 47 | . . . . 47 Impact 47 | . . . . 47 Slashing . | . . . . . Piercing . | . . . . . Sneak Attacks 1 | . . . . 1 Combat Hostiles . | . . . . . Follow-up Attacks 3 | . . . . 3 Damage Inflicted 1964 | . . 233 462 1269 Guns 799 | . . 213 458 128 Cannons . | . . . . . Explosions . | . . . . . Melee 1141 | . . . . 1141 Ramming 24 | . . 20 4 . Kinetic 128 | . . . . 128 Thermal 671 | . . 213 458 . Explosive . | . . . . . Electromagnetic . | . . . . . Impact 1141 | . . . . 1141 Slashing . | . . . . . Piercing . | . . . . . Highest Corruption 3 | . . . 3 . Average Corruption 2 | . . . 2 . Corruption Purged . | . . . . . Corruption Blocked . | . . . . . Effects 1 | . . . 1 . Matter Fused 1 | . . . 1 . Overload Shots . | . . . . . Overflow Damage 144 | . . . . 144 Projectiles . | . . . . . Explosions . | . . . . . Melee 144 | . . . . 144 Knockbacks 2 | . . . . 2 Impact 2 | . . . . 2 Kinetic . | . . . . . Secondary . | . . . . . Self-Inflicted Damage . | . . . . . Shots . | . . . . . Rammed . | . . . . . Targets Rammed 7 | . . 4 2 1 Kicked 7 | . . 4 2 1 Crushed . | . . . . . Highest Temperature 240 | . . 2 240 3 Average Temperature 74 | . . 2 78 3 Received Heat Transfer 462 | . . 18 102 342 Siege Activations . | . . . . . Martial Activations . | . . . . . Shielding Activations . | . . . . . Robots Disrupted . | . . . . . Combat Hostiles . | . . . . . Robots Corrupted 3 | . . . . 3 Combat Hostiles 3 | . . . . 3 Parts Fried 7 | . . . . 7 Impact Corruptions 5 | . . . . 5 Robots Melted 1 | . . . 1 . Combat Hostiles 1 | . . . 1 . Parts Melted 2 | . . . 2 . Heat Transferred 1591 | . . 475 1116 . Parts Sabotaged . | . . . . . Parts Stolen . | . . . . . Parts Stripped . | . . . . . Power Chain Reactions . | . . . . . Alert | -11 -10 -10 -9 -8 ------- Run | Yrd Mat Min Mat Mat Maximum Alert Level . | . . . . . Low Security (%) 100 | 100 100 100 100 100 Level 1 . | . . . . . Level 2 . | . . . . . Level 3 . | . . . . . Level 4 . | . . . . . Level 5 . | . . . . . High Security . | . . . . . Max Security . | . . . . . Peak Influence 140 | . 9 62 127 140 Initial 11 | . . . . 11 Average 33 | . . 14 51 48 Influence Increases 778 | . 9 130 244 395 Destroy 0b10 Robot/C 480 | . . 100 180 200 Destroy 0b10 Robot/NC 20 | . . 10 5 5 Destroy Leader 102 | . . 20 42 40 Successful Hack 9 | . 9 . . . Disable Machine 15 | . . . 15 . Destroy Structure 2 | . . . 2 . Lose Combat Pursuer 150 | . . . . 150 Influence Decreases 671 | . 9 130 217 315 Entered New Map 16 | . . . . 16 Time Decay 515 | . 9 130 207 169 Lost Part 140 | . . . 10 130 Squads Dispatched 3 | . 1 . . 2 Investigation . | . . . . . Extermination . | . . . . . Reinforcement 3 | . 1 . . 2 Assault . | . . . . . Garrison . | . . . . . Intercept . | . . . . . Searches Triggered . | . . . . . Construction Impeded . | . . . . . Haulers Reinforced . | . . . . . Active Scanning Responses . | . . . . . Cargo Convoy Interrupts . | . . . . . Stealth | -11 -10 -10 -9 -8 --------- Run | Yrd Mat Min Mat Mat Distress Signals 4 | . 1 . 1 2 Communications Jammed . | . . . . . Distress Signals . | . . . . . Times Spotted 41 | . 1 5 12 23 Peak Tracking Total 5 | . 1 3 4 5 Tactical Retreats 7 | . . . . 7 Traps | -11 -10 -10 -9 -8 ------- Run | Yrd Mat Min Mat Mat Traps Triggered 3 | . . . 3 . Indirectly . | . . . . . Trap Hack Attempts . | . . . . . Triggered . | . . . . . Disarmed . | . . . . . Reprogrammed . | . . . . . Reused . | . . . . . Traps Extracted . | . . . . . Installed . | . . . . . Triggered . | . . . . . Machines | -11 -10 -10 -9 -8 ---------- Run | Yrd Mat Min Mat Mat Machines Disabled 1 | . . . 1 . Max in Single Turn 1 | . . . 1 . Machines Repaired . | . . . . . Machines Dismantled . | . . . . . Machines Sabotaged . | . . . . . Overloaded Fab Kills . | . . . . . Hacking | -11 -10 -10 -9 -8 --------- Run | Yrd Mat Min Mat Mat Machines Accessed 6 | . 1 . 4 1 Terminals 4 | . 1 . 3 . Fabricators . | . . . . . Repair Stations . | . . . . . Recycling Units 1 | . . . . 1 Scanalyzers 1 | . . . 1 . Garrison Access . | . . . . . Total Hacks 15 | . 3 . 11 1 Successful 7 | . 1 . 5 1 Failed 8 | . 2 . 6 . Catastrophic 2 | . 1 . 1 . Database Lockouts . | . . . . . Manual . | . . . . . Terminals 11 | . 3 . 8 . Fabricators . | . . . . . Repair Stations . | . . . . . Recycling Units 1 | . . . . 1 Scanalyzers 3 | . . . 3 . Garrison Access . | . . . . . Terminal Hacks 4 | . 1 . 3 . Record 1 | . . . 1 . Branch Access Points 1 | . . . 1 . Locate Traps 1 | . . . 1 . Registered Prototypes 1 | . 1 . . . Fabricator Hacks . | . . . . . Repair Station Hacks . | . . . . . Recycling Unit Hacks 1 | . . . . 1 Report Inventory 1 | . . . . 1 Scanalyzer 2 | . . . 2 . Insert Component 1 | . . . 1 . Analyze 1 | . . . 1 . Garrison Access Hacks . | . . . . . Unauthorized Hacks . | . . . . . Terminals . | . . . . . Fabricators . | . . . . . Repair Stations . | . . . . . Recycling Units . | . . . . . Scanalyzers . | . . . . . Garrison Access . | . . . . . Data Cores Recovered . | . . . . . Used . | . . . . . Hacking Detections 5 | . 1 . 4 . Full Trace Events 1 | . . . 1 . Feedback Events . | . . . . . Feedback Blocked . | . . . . . Robot Schematics Acquired . | . . . . . Robots Built . | . . . . . Authchips . | . . . . . Time . | . . . . . Total Robot Build Rating . | . . . . . Part Schematics Acquired 1 | . . . 1 . Parts Built . | . . . . . Authchips . | . . . . . Time . | . . . . . Total Part Build Rating . | . . . . . Parts Repaired . | . . . . . Time . | . . . . . Parts Recycled . | . . . . . Recycled Matter . | . . . . . Retrieved Matter . | . . . . . Retrieved Components . | . . . . . Parts Scanalyzed 1 | . . . 1 . Part Schematics Acquired 1 | . . . 1 . Parts Damaged . | . . . . . Bothacking | -11 -10 -10 -9 -8 ------------ Run | Yrd Mat Min Mat Mat Used RIF Installer . | . . . . . Robots Hacked . | . . . . . Non-combat . | . . . . . Combat . | . . . . . Robot Hacks Applied . | . . . . . Relay Couplers Released . | . . . . . Fabnet Peak Effective % . | . . . . . Robots Rewired . | . . . . . Allies Hacked . | . . . . . Hacks Repelled . | . . . . . Allies | -11 -10 -10 -9 -8 -------- Run | Yrd Mat Min Mat Mat Total Allies . | . . . . . Largest Group . | . . . . . Highest-Rated Group . | . . . . . Highest-Rated Ally . | . . . . . Total Orders . | . . . . . Ally Attacks . | . . . . . Total Damage . | . . . . . Kills . | . . . . . Allies Corrupted . | . . . . . Allies Melted . | . . . . . Intel | -11 -10 -10 -9 -8 ------- Run | Yrd Mat Min Mat Mat Active Infowar (turns) 337 | . . . . 337 Sensors 337 | . . . . 337 Robot Analysis Total . | . . . . . Derelict Logs Recovered 2 | . . 2 . . Drone Launches . | . . . . . Drone Recoveries . | . . . . . Exploration | -11 -10 -10 -9 -8 ------------- Run | Yrd Mat Min Mat Mat Turns Passed 2077 | 67 206 611 685 508 Spaces Moved 1332 | 49 163 463 437 220 Core 22 | 9 . . . 13 Treads . | . . . . . Legs 1310 | 40 163 463 437 207 Wheels . | . . . . . Hover . | . . . . . Flight . | . . . . . Fastest Speed 50 | 50 120 120 120 50 Average Speed 119 | 107 120 120 120 119 Slowest Speed 200 | 120 120 120 120 200 Overloaded Moves . | . . . . . Propulsion Burnouts . | . . . . . Robots Hopped . | . . . . . Potential Cave-ins . | . . . . . Cave-ins Triggered . | . . . . . Exploration Rate (%) 37 | 5 33 96 32 19 Regions Visited 4 Branch Regions 1 Pre-discovered Areas 2 | . . 2 . . Known Exits Taken 1 | . . 1 . . Unknown Exits Taken 3 | 1 1 . 1 . Scrap Searched 2 | . . 2 . . Spaces Dug . | . . . . . Terrain Destroyed . | . . . . . Melee . | . . . . . Projectile . | . . . . . AOE . | . . . . . Terrain Rammed . | . . . . . Walls Destroyed . | . . . . . Machines Disabled . | . . . . . Actions | -11 -10 -10 -9 -8 --------- Run | Yrd Mat Min Mat Mat Total 1645 | 61 174 494 538 378 Wait 149 | . 1 12 48 88 Move 1328 | 48 162 462 436 220 Hop . | . . . . . Pick Up 20 | 6 7 2 3 2 Fast Attach 8 | 3 1 . 1 3 Attach 10 | 3 . . 2 5 Detach . | . . . . . Swap 13 | 1 . . 10 2 Drop 14 | . 3 2 7 2 Fire 53 | . . 12 29 12 Melee 43 | . . . . 43 Ram . | . . . . . Kick 7 | . . 4 2 1 Crush . | . . . . . Escape Stasis . | . . . . . Rewire . | . . . . . Trap . | . . . . . Miscellaneous . | . . . . . Route ------- -11/Scrapyard -10/Materials -10/Mines (discovered 2 exits: *Mat x2) -9/Materials (discovered 2 exits: *Mat / *Min) -8/Materials History --------- Turn | Location | Event 5 | -11/Scrapyard | Discovered new exit (range 16) 68 | -11/Scrapyard | Entered Materials 69 | -10/Materials | Met a group of wandering Federalists 261 | -10/Materials | Discovered new exit (range 7) 274 | -10/Materials | Entered Mines 279 | -10/Mines | Discovered new exit (range 14) 316 | -10/Mines | Build established: Mutant 317 | -10/Mines | Received a Rocket Launcher from a helpful Derelict 360 | -10/Mines | Found a hidden stash of uninstalled traps 494 | -10/Mines | Learned location of Zion (-7) 720 | -10/Mines | Identified exit to Materials 749 | -10/Mines | Found a damaged Exp. Sensor Array with a note attached 753 | -10/Mines | Found Prototype Device 854 | -10/Mines | Learned location of Storage (-7) 885 | -10/Mines | Entered Materials 885 | -9/Materials | Evolved 2 slots: Propulsion x2 1018 | -9/Materials | Discovered new exit (range 9) 1393 | -9/Materials | Discovered new exit (range 16) 1402 | -9/Materials | Identified exit to Mines 1533 | -9/Materials | Identified Exp. Sensor Array 1549 | -9/Materials | Build established: Scavenger-Mutant 1570 | -9/Materials | Entered another Materials area 1570 | -8/Materials | Evolved 2 slots: Utility x2 1972 | -8/Materials | Core integrity fell below 50% 1974 | -8/Materials | Lost 10 parts (1p4n4u1w) 1984 | -8/Materials | Core integrity fell below 20% 2078 | -8/Materials | Destroyed by S-10 Pest with Light Assault Rifle Last Messages --------------- 02003_ Destroyed Particle Gun. 02004_ Acquired 4 matter. 02004_ R-06 Scavenger inserts Corrupted Weapon Cycler into recycling unit. 02006_ K-01 Serf collects debris. 02006_ R-06 Scavenger collects Wheel. 02007_ Acquired 4 matter. 02008_ Acquired Aluminum Leg. 02010_ K-01 Serf collects debris. 02010_ R-06 Scavenger collects Arm. Treads. 02010_ Acquired 20 matter. 02013_ R-06 Scavenger collects Corrupted Rnf. Deuterium Engine. 02014_ K-01 Serf collects debris. 02018_ Kicked R-06 Scavenger. 02019_ R-06 Scavenger inserts Lgt. Ion Engine into recycling unit. 02020_ Recycling unit begins recycling process. 02020_ K-01 Serf collects debris. 02022_ R-06 Scavenger inserts Machine Analyzer into recycling unit. 02024_ K-01 Serf collects debris. 02069_ Ion Engine destroyed. 02071_ S-10 Pest destroyed. Map ----- +----------------------------------------------------+ | ?????????????????????????????????????????????????? | | ?????????????????????????????????????????????????? | | ?????????????????????????????????????????????????? | | ?????????????????????????????????????????????????? | | ?????????????????????????????????????????????????? | | ?????????????????????????????????????????????????? | | ?????????????????????????????????????????????????? | | ?????????????????????????????????????????????????? | | ???????????????????? ??????????????????????????? | | ??????????????????? ??????????????????????????? | | ???????????????????# ??????????????????????????? | | ???????????????????# ??????????????????????????? | | ???????????????????# ??????????????????????????? | | ???????????????????# ??????????????????????????? | | ???????????????????# ??????????????????????????? | | ???????????????????# #?????????????????????????? | | ???????????????????# #?????????????????????????? | | ???????????????????+ ###########???????????????? | | ???????????????????# # #???????????????? | | ???????????????????# # #???????????????? | | ???????????????????# # #???????????????? | | ???????????????????# # """ """ #???????????????? | | ???????????????????# # """ """ #???????????????? | | ???????????????????# # """ """ #???????????????? | | ???????????????????# %+[ #???????????????? | | ???????????????????# # @s #???????????????? | | ???????????????????# ####/######???????????????? | | ???????????????????# #??# #????????????????????? | | ???????????????????# #??# #????????????????????? | | ???????????????????# #??# #????????????????????? | | ???????????????????# #??# #????????????????????? | | ???????????????????# #??# #????????????????????? | | ???????????????????# #??# #????????????????????? | | ?????????????##????# #??# #????????????????????? | | ????????????##T##### #### ###??????????????????? | | ????????????# #??????????????????? | | ????????????# % #??????????????????? | | ????????????# #??????????????????? | | ????????????#[[[ %" " %######+####???????????????? | | ????????????#[[ " # #???????????????? | | ????????????#[[ """ # """ #???????????????? | | ????????????# """ # "Y" ######### #?????? | | ????????????# """ #[ / | | ????????????+% %+%""""" %##########??????? | | ??????????? # #% """ ##??????????????? | | ??????????" ## ##### #% "" % #???????????????? | | ?????????""??# ????# %#% %% #???????????????? | | ????????? ???# ????#% ###########???????????????? | | ????????#????# ????# #########?????????????????? | | ?????????????# ????# # #?????????????????? | +----------------------------------------------------+ Best States ------------- Heat Dissipation 51 Energy Generation 10 Energy Capacity 250 Matter Stores 300 Matter Capacity 300 Sight Range 16 Robot Scan Range 20 Terrain Scan Density 10 Armor Coverage 150 Evasion (%) 55 Recoil Reduction 1 Item Schematics ----------------- Exp. Sensor Array | -9/Materials | Scanalyzed Robot Schematics ------------------ None Fabricated ------------ Nothing Repaired ---------- Nothing Alien Tech Used ----------------- None Achievements -------------- None Challenges ------------ None Game ------ Seed TechLauncherClaymores Manual? 0 Play Time 00:40:16 Cumulative 7.5 hours Start 2025.10.03 @ 21:52:29 End 2025.10.03 @ 22:49:01 Sessions 1 Manual Loads 0 Difficulty Rogue Special Mode None Game No. 6 Rogue 6 Adventurer 0 Explorer 0 Win Type - Total 0 Types 0/0/0/0/0/0/0/0/0/0 Lore% 3 Gallery% 7 Achievement% 10 Wizard Run 0 Options --------- Layout 0 ASCII 0 Keyboard 0 Movement Numpad Keybinds 0 Fullscreen 2 Font 18/Terminus Map View 76x50 Zoom Use 5% Tactical HUD 1 Map Filters NONE Filters NONE Steam 1 RUN: d1ca36ba-8afd-44a2-b2b7-6fee0f386fbf